Workbook

Sheet 1. Contact Info & Certification
A1: DEPARTMENT OF HOUSING AND COMMUNITY DEVELOPMENT
A2: DIVISION OF STATE FINANCIAL ASSISTANCE
A3: STATE GRANT MANAGEMENT
A4: 2020 West El Camino, 4th Floor
A5: Sacramento, CA 95833
A8: California Emergency Solutions and Housing (CESH) Program
D9: Annual Report
A10: Last Revised: 04/11/2023
A11: Instructions
A12: A. This report is subject to the CESH program requirements of Health and Safety Code (HSC) Part 2 of Division 31 Chapter 2.8, commencing with §50490 and including §50490.1, 50490.2, 50490.3, 50490.4, and 50490.5, and the 2018 and 2019 CESH Notice of Funding Availability (NOFA).
A13: B. An Administrative Entity that receives funds pursuant to the 2018 or 2019 CESH NOFA must submit a completed annual report each year by July 31 for the term of the contract with HCD that reports all activities from the previous fiscal year (7/1-6/30).
A14: C. Annual Report Submittal must be in Excel format with all applicable attachments and emailed to your assigned SGM Representative. Please tab through each worksheet and ensure all four worksheets are completed.
A15: General Information
A16: HCD Contract #: | E16: 19-CESH-12962 | I16: Reporting Period: | L16: 7/01/2022 - 6/30/2023 | Y16: =AND(E16<>"", L16= "Select One") -> FALSE
A17: Contact Information
A18: Administrative Entity
A19: Admin Entity Name: | E19: County of Fresno, Department of Social Services | Y19: sd
A20: Admin Entity Address (number and street): | E20: PO Box 1912
A21: Admin Entity City: | E21: Fresno | I21: Admin Entity State: | L21: CA
A22: Admin Entity Zip: | E22: 93718 | I22: Admin Entity County: | L22: Fresno
A23: Authorized Representative (Per Board Resolution)
A24: Name: | E24: Sanja Bugay | I24: Address (Number and Street): | L24: 205 W. Pontiac Way
A25: Title: | E25: Director, County of Fresno DSS | I25: City: | L25: Clovis
A26: Email Address: | E26: sbugay@fresnocountyca.gov | I26: State: | L26: CA
A27: Phone Number: | E27: 559-600-2301 | I27: Zip: | L27: 93612
A28: Contact Information (If different from Authorized Representative)
A29: Name: | E29: Laura Moreno | I29: Address (Number and Street): | L29: 205 W. Pontiac Way
A30: Title: | E30: Program Manager | I30: City: | L30: Clovis
A31: Email Address: | E31: lhaga@fresnocountyca.gov | I31: State: | L31: CA
A32: Phone Number: | E32: 559-600-2335 | I32: Zip: | L32: 93612
A33: Continuum of Care (CoC)
A34: CoC Service Area: | E34: Fresno Madera Continuum of Care | I34: Address (Number and Street): | L34: 205 W. Pontiac Way
A35: CoC #: | E35: CA-514 | I35: City: | L35: Clovis
A36: CoC Representative Name: | E36: Laura Moreno | I36: State: | L36: CA
A37: Email Address: | E37: lhaga@fresnocountyca.gov | I37: Zip: | L37: 93612
A38: Certification
A39: State of California On behalf of the entity identified in the signature block below, I certify that:
A40: The information, statements and attachments included in this report are, to the best of my knowledge and belief, true and correct
A41: I possess the legal authority to submit this report on behalf of the entity identified in the signature block.
A42: In addition, I acknowledge that all information in this report and attachments is public, and may be disclosed by the State
A43: Note: You may choose "Certification by Printed Name" from the drop-down below and by doing so you are agreeing to all the information detailed in the above Certification without having to submit a copy of this document with a digital signature. If you select this option, please be sure to type out your name in both the "Name of Authorized Person" and "Signature of Authorized Person" fields. If you select "Certification by Digital Signature," you must submit the following: 1) Copy of the Excel version of this document and 2) PDF copy with digital signature.
A44: Signature Method: | D44: Certification by Signature
A45: Name of Authorized Person | I45: Title of Authorized Person
A46: Sanja Bugay | I46: Director, County of Fresno Department of Social Services
A47: Signature of Authorized Person | I47: Date

Sheet 2. Expenditure Breakdown
A3: Expenditure Breakdown
A4: Entity Name: | F4: ='1. Contact Info & Certification'!$E$19 -> County of Fresno, Department of Social Services | L4: Contract # | P4: ='1. Contact Info & Certification'!$E$16 -> 19-CESH-12962
A5: Instructions: Please use the Expenditure Table (arranged by activity) below to provide information on your project's total CESH award amount, amount of the award expended this reporting period, whether the amount was expended by the Administrative Entity or Sub-Recipient (drop-down selection), Name of Sub-Recipient Expending Funds (if applicable), amount of the award previously reported expended and proof of expenditures supplied for this reporting period.
A6: Funding Type | L6: Award Amount
A7: California Emergency Solutions and Housing (CESH) | L7: 879281
A8: Activity Name | G8: Award Amount | I8: Total Amount Disbursed (All funds disbursed to Admin Entity since inception of contract) | J8: Amount of Award Expended this Reporting Period | L8: Amount Expended By | M8: Name of Subrecipient Expending Funds (if applicable) | N8: Amount Expended Prior to this Reporting Period | P8: Proof of Expenditures for this Reporting Period Attached? | Q8: Total Amount Disbursed | R8: Total Amount Expended | S8: Percent Expended | T8: Amount of Award Not Yet Disbursed
A9: Activity #1: Rental assistance, housing relocation & stabilization services to ensure housing affordability to individuals experiencing homelessness or who are at risk of homelessness. | G9: 685317 | I9: 533253 | J9: 319811.72 | L9: Subrecipient | M9: WestCare California, Inc., RH Community Builders | N9: 215237.31 | P9: Yes | Q9: =I9 -> 533253 | R9: =J9+N9 -> 535049.03 | S9: =IF(G9,(J9+N9)/G9, 0) -> 0.7807321721 | T9: =G9-I9 -> 152064
A10: Activity #2: Operating subsidies in the form of 15-year capitalized operating reserves for new and existing affordable permanent housing units for homeless individuals and/or families. | G10: 0 | I10: 0 | L10: Select One | P10: N/A | Q10: 0 | R10: =J10+N10 -> 0 | S10: 0 | T10: =G10-I10 -> 0
A11: Activity #3: Flexible housing subsidy funds for local programs that establish or support the provision of rental subsidies in permanent housing to assist homeless individuals & families. | G11: 0 | I11: 0 | L11: Select One | P11: N/A | Q11: 0 | R11: 0 | S11: 0 | T11: 0
A12: Activity #4: Operating support for emergency housing interventions including but not limited to: navigation centers, street outreach, and shelter diversion. The AE shall not use more than 40% of any funds allocated in a fiscal year for this activity. | G12: 0 | I12: 0 | L12: Select One | P12: N/A | Q12: 0 | R12: 0 | S12: 0 | T12: 0
A13: Activity #5: Systems support for activities necessary to maintain a comprehensive homeless services and housing delivery system, including Coordinated Entry System (CES) data, and Homeless Management Information System (HMIS) reporting, and homelessness planning activities. | G13: 75000 | I13: 60000 | J13: 9210 | L13: Subrecipient | M13: Housing Authority of the City of Fresno | N13: 0 | P13: Yes | Q13: 60000 | R13: 9210 | S13: 0.1228 | T13: 15000
A14: Activity #6: Develop or update a CES, if the CoC does not have a system in place that meets the applicable HUD requirements, as set forth in Section II.E.3.b of the NOFA. Eligible costs do not include capital development activities. | G14: 0 | I14: 0 | L14: Select One | P14: N/A | Q14: 0 | R14: 0 | S14: 0 | T14: 0
A15: Activity 7: Development of a plan addressing actions to be taken within the CoC service area if no such plan exists. Plan shall be submitted to HCD prior to expiration of HCD contract. | G15: 75000 | I15: 75000 | J15: 56750 | L15: Subrecipient | M15: County of Madera, Innovative Research & Analysis LLC | N15: 0 | P15: Yes | Q15: 75000 | R15: 56750 | S15: 0.7566666667 | T15: 0
A16: Admin: Administrative costs as defined in Section II.D of the CESH NOFA. | G16: 43964 | I16: 35170 | J16: 18575.4 | L16: Administrative Entity | N16: 0 | P16: Yes | Q16: 35170 | R16: 18575.4 | S16: 0.422513875 | T16: 8794
A17: Totals: | G17: =SUM(G9:H16) -> 879281 | I17: =SUM(I9:I16) -> 703423 | J17: =SUM(J9:K16) -> 404347.12 | N17: =SUM(N9:O16) -> 215237.31 | Q17: =I17 -> 703423 | R17: =SUM(R9:R16) -> 619584.43 | S17: =IF(G17, (J17+N17)/G17) -> 0.7046489461 | T17: =G17-I17 -> 175858
A18: Expenditure Narrative
A19: Instructions: Please use the narrative boxes below to explain how the program funds you reported above were used to carry out the relevant activity. Narrative Boxes will only appear if you have entered an amount in the above table in the "Amount of Award Expended this Reporting Period" column.
A20: Activity #1
A21: Please explain how the funds for this Activity were expended this reporting period. If funds were expended by mutiple Subrecipients, please use the extra rows to provide additional details.
A22: Expenses | R22: Expense Amount
A23: Subrecipient or Administrative Entity? | D23: Subrecipient | F23: If Subrecipient, please provide name: | I23: WestCare California, Inc. | K23: Type of Expenses (Description): | M23: Project-based Rapid Rehousing and case management services in Fresno through 24 master leased units. Additionally, WestCare subcontracts with Selma Community Outreach Ministries (Selma COM) to provide tenant-based rapid rehousing services in rural Fresno County including Selma and surrounding cities. | R23: 131054.36
A24: Subrecipient or Administrative Entity? | D24: Subrecipient | F24: If Subrecipient, please provide name: | I24: RH Community Builders | K24: Type of Expenses (Description): | M24: This funding was deposited to the Capitalized Operating Subsidy Reserve to provide long-term support for a Landlord Mitigation Fund, which covers habitability improvements, holding costs, leasing incentives, non-payment of rent, and costs due to excessive damage done to a unit beyond what the security deposit will pay. This added protection serves to encourage landlords to rent to households that are considered high risk. | R24: 188757.36
A25: Subrecipient or Administrative Entity? | D25: Select One | F25: If Subrecipient, please provide name: | K25: Type of Expenses (Description):
A26: Subrecipient or Administrative Entity? | D26: Select One | F26: If Subrecipient, please provide name: | K26: Type of Expenses (Description):
A27: Total (Should match amount entered in "Amount of Award Expended this Reporting Period" above) : | R27: =SUM(R23:U26) -> 319811.72
A28: If your total is highlighted red, amount does not match what was entered in "Amount of Award Expended this Reporting Period." Please use the narrative box below to explain any discrepancies. If more funds were expended than were awarded, provide details on what funding sources are covering the difference.
A30: Activity #2
A31: Please explain how the funds for this Activity were expended this reporting period. If funds were expended by mutiple Subrecipients, please use the extra rows to provide additional details.
A32: Expenses | R32: Expense Amount
A33: Subrecipient or Administrative Entity? | D33: Select One | F33: If Subrecipient, please provide name: | K33: Type of Expenses (Description):
A34: Subrecipient or Administrative Entity? | D34: Select One | F34: If Subrecipient, please provide name: | K34: Type of Expenses (Description):
A35: Subrecipient or Administrative Entity? | D35: Select One | F35: If Subrecipient, please provide name: | K35: Type of Expenses (Description):
A36: Subrecipient or Administrative Entity? | D36: Select One | F36: If Subrecipient, please provide name: | K36: Type of Expenses (Description):
A37: Total (Should match amount entered in "Amount of Award Expended this Reporting Period" above) : | R37: =SUM(R33:U36) -> 0
A38: If your total is highlighted red, amount does not match what was entered in "Amount of Award Expended this Reporting Period." Please use the narrative box below to explain any discrepancies. If more funds were expended than were awarded, provide details on what funding sources are covering the difference.
A40: Activity #3
A41: Please explain how the funds for this Activity were expended this reporting period. If funds were expended by mutiple Subrecipients, please use the extra rows to provide additional details.
A42: Expenses | R42: Expense Amount
A43: Subrecipient or Administrative Entity? | D43: Select One | F43: If Subrecipient, please provide name: | K43: Type of Expenses (Description):
A44: Subrecipient or Administrative Entity? | D44: Select One | F44: If Subrecipient, please provide name: | K44: Type of Expenses (Description):
A45: Subrecipient or Administrative Entity? | D45: Select One | F45: If Subrecipient, please provide name: | K45: Type of Expenses (Description):
A46: Subrecipient or Administrative Entity? | D46: Select One | F46: If Subrecipient, please provide name: | K46: Type of Expenses (Description):
A47: Total (Should match amount entered in "Amount of Award Expended this Reporting Period" above) : | R47: =SUM(R43:U46) -> 0
A48: If your total is highlighted red, amount does not match what was entered in "Amount of Award Expended this Reporting Period." Please use the narrative box below to explain any discrepancies. If more funds were expended than were awarded, provide details on what funding sources are covering the difference.
A50: Activity #4
A51: Please explain how the funds for this Activity were expended this reporting period. If funds were expended by mutiple Subrecipients, please use the extra rows to provide additional details.
A52: Expenses | R52: Expense Amount
A53: Subrecipient or Administrative Entity? | D53: Select One | F53: If Subrecipient, please provide name: | K53: Type of Expenses (Description):
A54: Subrecipient or Administrative Entity? | D54: Select One | F54: If Subrecipient, please provide name: | K54: Type of Expenses (Description):
A55: Subrecipient or Administrative Entity? | D55: Select One | F55: If Subrecipient, please provide name: | K55: Type of Expenses (Description):
A56: Subrecipient or Administrative Entity? | D56: Select One | F56: If Subrecipient, please provide name: | K56: Type of Expenses (Description):
A57: If your total is highlighted red, amount does not match what was entered in "Amount of Award Expended this Reporting Period." Please use the narrative box below to explain any discrepancies. If more funds were expended than were awarded, provide details on what funding sources are covering the difference.
A59: Total (Should match amount entered in "Amount of Award Expended this Reporting Period" above) : | R59: =SUM(R53:U56) -> 0
A60: Activity #5
A61: Please explain how the funds for this Activity were expended this reporting period. If funds were expended by mutiple Subrecipients, please use the extra rows to provide additional details.
A62: Expenses | R62: Expense Amount
A63: Subrecipient or Administrative Entity? | D63: Subrecipient | F63: If Subrecipient, please provide name: | I63: Housing Authority of the City of Fresno | K63: Type of Expenses (Description): | M63: The Housing Authority of the City of Fresno provides Homeless Management Information System (HMIS) services to the County and its specified subrecipients. Services include New User Initial Setup, HMIS Advanced Reporting Tool, License Fees, Training, and Technical Support. | R63: 9210
A64: Subrecipient or Administrative Entity? | D64: Select One | F64: If Subrecipient, please provide name: | K64: Type of Expenses (Description):
A65: Subrecipient or Administrative Entity? | D65: Select One | F65: If Subrecipient, please provide name: | K65: Type of Expenses (Description):
A66: Subrecipient or Administrative Entity? | D66: Select One | F66: If Subrecipient, please provide name: | K66: Type of Expenses (Description):
A67: Total (Should match amount entered in "Amount of Award Expended this Reporting Period" above) : | R67: =SUM(R63:U66) -> 9210
A68: If your total is highlighted red, amount does not match what was entered in "Amount of Award Expended this Reporting Period." Please use the narrative box below to explain any discrepancies. If more funds were expended than were awarded, provide details on what funding sources are covering the difference.
A70: Activity #6
A71: Please explain how the funds for this Activity were expended this reporting period. If funds were expended by mutiple Subrecipients, please use the extra rows to provide additional details.
A72: Expenses | R72: Expense Amount
A73: Subrecipient or Administrative Entity? | D73: Select One | F73: If Subrecipient, please provide name: | K73: Type of Expenses (Description):
A74: Subrecipient or Administrative Entity? | D74: Select One | F74: If Subrecipient, please provide name: | K74: Type of Expenses (Description):
A75: Subrecipient or Administrative Entity? | D75: Select One | F75: If Subrecipient, please provide name: | K75: Type of Expenses (Description):
A76: Subrecipient or Administrative Entity? | D76: Select One | F76: If Subrecipient, please provide name: | K76: Type of Expenses (Description):
A77: Total (Should match amount entered in "Amount of Award Expended this Reporting Period" above) : | R77: =SUM(R73:U76) -> 0
A78: If your total is highlighted red, amount does not match what was entered in "Amount of Award Expended this Reporting Period." Please use the narrative box below to explain any discrepancies. If more funds were expended than were awarded, provide details on what funding sources are covering the difference.
A80: Activity #7
A81: Please explain how the funds for this Activity were expended this reporting period. If funds were expended by mutiple Subrecipients, please use the extra rows to provide additional details.
A82: Expenses | R82: Expense Amount
A83: Subrecipient or Administrative Entity? | D83: Subrecipient | F83: If Subrecipient, please provide name: | I83: County of Madera | K83: Type of Expenses (Description): | M83: The County of Madera will provide a comprehensive homeless service plan to end homelessness in Madera, including both metro and rural areas within Madera County. | R83: 50000
A84: Subrecipient or Administrative Entity? | D84: Subrecipient | F84: If Subrecipient, please provide name: | I84: Innovative Research & Analysis LLC | K84: Type of Expenses (Description): | M84: Innovative Research & Analysis LLC will utilize region specific research, secondary data collection, primary data collection, comparative analysis, report development, and project management to develop a needs assessment with action planning incorporated for rural service area with in the Fresno Madera Continuum of Care jurisdiction. | R84: 6750
A85: Subrecipient or Administrative Entity? | D85: Select One | F85: If Subrecipient, please provide name: | K85: Type of Expenses (Description):
A86: Subrecipient or Administrative Entity? | D86: Select One | F86: If Subrecipient, please provide name: | K86: Type of Expenses (Description):
A87: Total (Should match amount entered in "Amount of Award Expended this Reporting Period" above) : | R87: =SUM(R83:U86) -> 56750
A88: If your total is highlighted red, amount does not match what was entered in "Amount of Award Expended this Reporting Period." Please use the narrative box below to explain any discrepancies. If more funds were expended than were awarded, provide details on what funding sources are covering the difference.
A90: Admin
A91: Please explain how the funds for this Activity were expended this reporting period. If funds were expended by mutiple Subrecipients, please use the extra rows to provide additional details.
A92: Expenses | R92: Expense Amount
A93: Subrecipient or Administrative Entity? | D93: Administrative Entity | F93: If Subrecipient, please provide name: | K93: Type of Expenses (Description): | M93: Staff time costs for contract and grant management. | R93: 18575.4
A94: Subrecipient or Administrative Entity? | D94: Select One | F94: If Subrecipient, please provide name: | K94: Type of Expenses (Description):
A95: Subrecipient or Administrative Entity? | D95: Select One | F95: If Subrecipient, please provide name: | K95: Type of Expenses (Description):
A96: Subrecipient or Administrative Entity? | D96: Select One | F96: If Subrecipient, please provide name: | K96: Type of Expenses (Description):
A97: Total (Should match amount entered in "Amount of Award Expended this Reporting Period" above) : | R97: =SUM(R93:U96) -> 18575.4
A98: If your total is highlighted red, amount does not match what was entered in "Amount of Award Expended this Reporting Period." Please use the narrative box below to explain any discrepancies. If more funds were expended than were awarded, provide details on what funding sources are covering the difference.

Sheet 3. Reporting Requirements
A3: Reporting Requirements
A5: Entity Name: | E5: ='1. Contact Info & Certification'!$E$19 -> County of Fresno, Department of Social Services | I5: Contract # | M5: ='1. Contact Info & Certification'!$E$16 -> 19-CESH-12962
A6: Instructions: Please review each Reporting Requirement, confirm whether relevant documentation is attached, list any supporting documentation and provide any necessary comments.
A7: 1. Provide the Administrative Entity's program or project selection process performed to allocate available funds to subrecipients qualified to carry out the eligible activities. Standard Agreement: Exhibit D, Section 6, Part B(1)
A8: Documentation Attached? | D8: Previously Submitted | G8: Title of Attached Documentation:
A9: Have changes been made to project selection process since last submission? | N9: No
A10: If changes have been made to project selection process since last submission, is a copy of the updated process attached with this report? | N10: N/A
A11: List supporting documentation and any comments. If "No" or "N/A" was selected above, please clarify.
A12: No changes have been made to the project selection process and documentation has previously been provided.
A13: 2. Provide amounts awarded to subrecipients, with the activity(ies) identified. Standard Agreement: Exhibit D, Section 6, Part B(2) AE must issue award letters to any subrecipients within 24 months of the date of an HCD award letter. If no subrecipient will be awarded, select "N/A." If subrecipient will be awarded, but has not been yet, select "No" and clarify. Note: Supporting documentation may include award letters or subrecipient agreements that demonstrate proposed activities.
A14: Enter the date of the CESH Award Letter from HCD: | H14: 2019-10-07
A15: Instructions: If program funds were awarded to subrecipients, please use the boxes below to provide the name of the subrecipient, total (not just this reporting period) amount awarded to the subrecipient and the date of the subrecipient award letter. Using the drop-down below to select the number of subrecipients that have received funds will reveal rows that will need to be completed. Be sure to complete all fields for each subrecipient.
A16: Select the Number of Subrecipients Awarded Funds: | H16: 5
A17: Subrecipient #1 Name: | E17: WestCare California, Inc. | H17: Award Amount: | J17: 259705 | L17: Enter the date of your Subrecipient Award Letter award(s): | O17: 2021-09-30
A18: Using the drop-downs below, select which activities funds were awarded to sub-recipient for and provide the amount awarded for that specific activity. In the event that a subrecipient received an award for multiple eligible activities, please use the extra rows to select all that apply. Note: Descriptions of Activities can be found on the "4. HMIS Data" tab.
A19: Select Awarded Activity: | E19: Activity #1 | H19: Activity Award Amount: | J19: 259705 | L19: Has award amount changed since last reporting? | O19: No
A20: Select Awarded Activity: | E20: Select One | H20: Activity Award Amount: | L20: Has award amount changed since last reporting? | O20: Select One
A21: Select Awarded Activity: | E21: Select One | H21: Activity Award Amount: | L21: Has award amount changed since last reporting? | O21: Select One
A22: Subrecipient #2 Name: | E22: RH Community Builders | H22: Award Amount: | J22: 425612 | L22: Enter the date of your Subrecipient Award Letter award(s): | O22: 2023-07-06
A23: Using the drop-downs below, select which activities funds were awarded to sub-recipient for and provide the amount awarded for that specific activity. In the event that a subrecipient received an award for multiple eligible activities, please use the extra rows to select all that apply. Note: Descriptions of Activities can be found on the "4. HMIS Data" tab.
A24: Select Awarded Activity: | E24: Activity #1 | H24: Activity Award Amount: | J24: 425612 | L24: Has award amount changed since last reporting? | O24: Yes
A25: Select Awarded Activity: | E25: Select One | H25: Activity Award Amount: | L25: Has award amount changed since last reporting? | O25: Select One
A26: Select Awarded Activity: | E26: Select One | H26: Activity Award Amount: | L26: Has award amount changed since last reporting? | O26: Select One
A27: Subrecipient #3 Name: | E27: Housing Authority of the City of Fresno | H27: Award Amount: | J27: 75000 | L27: Enter the date of your Subrecipient Award Letter award(s): | O27: 2021-09-30
A28: Using the drop-downs below, select which activities funds were awarded to sub-recipient for and provide the amount awarded for that specific activity. In the event that a subrecipient received an award for multiple eligible activities, please use the extra rows to select all that apply. Note: Descriptions of Activities can be found on the "4. HMIS Data" tab.
A29: Select Awarded Activity: | E29: Activity #5 | H29: Activity Award Amount: | J29: 75000 | L29: Has award amount changed since last reporting? | O29: No
A30: Select Awarded Activity: | E30: Select One | H30: Activity Award Amount: | L30: Has award amount changed since last reporting? | O30: Select One
A31: Select Awarded Activity: | E31: Select One | H31: Activity Award Amount: | L31: Has award amount changed since last reporting? | O31: Select One
A32: Subrecipient #4 Name: | E32: Innovative Research & Analysis, LLC | H32: Award Amount: | J32: 25000 | L32: Enter the date of your Subrecipient Award Letter award(s): | O32: 2021-09-30
A33: Using the drop-downs below, select which activities funds were awarded to sub-recipient for and provide the amount awarded for that specific activity. In the event that a subrecipient received an award for multiple eligible activities, please use the extra rows to select all that apply. Note: Descriptions of Activities can be found on the "4. HMIS Data" tab.
A34: Select Awarded Activity: | E34: Activity #7 | H34: Activity Award Amount: | J34: 25000 | L34: Has award amount changed since last reporting? | O34: No
A35: Select Awarded Activity: | E35: Select One | H35: Activity Award Amount: | L35: Has award amount changed since last reporting? | O35: Select One
A36: Select Awarded Activity: | E36: Select One | H36: Activity Award Amount: | L36: Has award amount changed since last reporting? | O36: Select One
A37: Subrecipient #5 Name: | E37: County of Madera | H37: Award Amount: | J37: 50000 | L37: Enter the date of your Subrecipient Award Letter award(s): | O37: 2021-09-29
A38: Using the drop-downs below, select which activities funds were awarded to sub-recipient for and provide the amount awarded for that specific activity. In the event that a subrecipient received an award for multiple eligible activities, please use the extra rows to select all that apply. Note: Descriptions of Activities can be found on the "4. HMIS Data" tab.
A39: Select Awarded Activity: | E39: Activity #7 | H39: Activity Award Amount: | J39: 50000 | L39: Has award amount changed since last reporting? | O39: No
A40: Select Awarded Activity: | E40: Select One | H40: Activity Award Amount: | L40: Has award amount changed since last reporting? | O40: Select One
A41: Select Awarded Activity: | E41: Select One | H41: Activity Award Amount: | L41: Has award amount changed since last reporting? | O41: Select One
A42: Subrecipient #6 Name: | H42: Award Amount: | J42: 0 | L42: Enter the date of your Subrecipient Award Letter award(s):
A43: Using the drop-downs below, select which activities funds were awarded to sub-recipient for and provide the amount awarded for that specific activity. In the event that a subrecipient received an award for multiple eligible activities, please use the extra rows to select all that apply. Note: Descriptions of Activities can be found on the "4. HMIS Data" tab.
A44: Select Awarded Activity: | E44: Select One | H44: Activity Award Amount: | L44: Has award amount changed since last reporting? | O44: Select One
A45: Select Awarded Activity: | E45: Select One | H45: Activity Award Amount: | L45: Has award amount changed since last reporting? | O45: Select One
A46: Select Awarded Activity: | E46: Select One | H46: Activity Award Amount: | L46: Has award amount changed since last reporting? | O46: Select One
A47: Subrecipient #7 Name: | H47: Award Amount: | J47: 0 | L47: Enter the date of your Subrecipient Award Letter award(s):
A48: Using the drop-downs below, select which activities funds were awarded to sub-recipient for and provide the amount awarded for that specific activity. In the event that a subrecipient received an award for multiple eligible activities, please use the extra rows to select all that apply. Note: Descriptions of Activities can be found on the "4. HMIS Data" tab.
A49: Select Awarded Activity: | E49: Select One | H49: Activity Award Amount: | L49: Has award amount changed since last reporting? | O49: Select One
A50: Select Awarded Activity: | E50: Select One | H50: Activity Award Amount: | L50: Has award amount changed since last reporting? | O50: Select One
A51: Select Awarded Activity: | E51: Select One | H51: Activity Award Amount: | L51: Has award amount changed since last reporting? | O51: Select One
A52: Subrecipient #8 Name: | H52: Award Amount: | J52: 0 | L52: Enter the date of your Subrecipient Award Letter award(s):
A53: Using the drop-downs below, select which activities funds were awarded to sub-recipient for and provide the amount awarded for that specific activity. In the event that a subrecipient received an award for multiple eligible activities, please use the extra rows to select all that apply. Note: Descriptions of Activities can be found on the "4. HMIS Data" tab.
A54: Select Awarded Activity: | E54: Select One | H54: Activity Award Amount: | L54: Has award amount changed since last reporting? | O54: Select One
A55: Select Awarded Activity: | E55: Select One | H55: Activity Award Amount: | L55: Has award amount changed since last reporting? | O55: Select One
A56: Select Awarded Activity: | E56: Select One | H56: Activity Award Amount: | L56: Has award amount changed since last reporting? | O56: Select One
A57: Subrecipient #9 Name: | H57: Award Amount: | J57: 0 | L57: Enter the date of your Subrecipient Award Letter award(s):
A58: Using the drop-downs below, select which activities funds were awarded to sub-recipient for and provide the amount awarded for that specific activity. In the event that a subrecipient received an award for multiple eligible activities, please use the extra rows to select all that apply. Note: Descriptions of Activities can be found on the "4. HMIS Data" tab.
A59: Select Awarded Activity: | E59: Select One | H59: Activity Award Amount: | L59: Has award amount changed since last reporting? | O59: Select One
A60: Select Awarded Activity: | E60: Select One | H60: Activity Award Amount: | L60: Has award amount changed since last reporting? | O60: Select One
A61: Select Awarded Activity: | E61: Select One | H61: Activity Award Amount: | L61: Has award amount changed since last reporting? | O61: Select One
A62: Subrecipient #10 Name: | H62: Award Amount: | J62: 0 | L62: Enter the date of your Subrecipient Award Letter award(s):
A63: Using the drop-downs below, select which activities funds were awarded to sub-recipient for and provide the amount awarded for that specific activity. In the event that a subrecipient received an award for multiple eligible activities, please use the extra rows to select all that apply. Note: Descriptions of Activities can be found on the "4. HMIS Data" tab.
A64: Select Awarded Activity: | E64: Select One | H64: Activity Award Amount: | L64: Has award amount changed since last reporting? | O64: Select One
A65: Select Awarded Activity: | E65: Select One | H65: Activity Award Amount: | L65: Has award amount changed since last reporting? | O65: Select One
A66: Select Awarded Activity: | E66: Select One | H66: Activity Award Amount: | L66: Has award amount changed since last reporting? | O66: Select One
A67: Documentation Attached? | D67: Yes | G67: Title of Attached Documentation: | L67: RHCB Funding Letter 7.6.23.pdf
A68: List supporting documentation and any comments. If "No" or "N/A" was selected above, please clarify.
A69: An updated funding letter for RH Community Builders is attached, all other funding letters were provided in the previously submitted report.
A70: 3. Provide projected performance measures (this can include projections for individuals served in the next reporting period, projections of number of supportive services performed or offered in the next reporting period, or any other performance measures your project has identified). Standard Agreement: Exhibit D, Section 6, Part B(3)
A71: Documentation Attached? | D71: Yes | G71: Title of Attached Documentation: | L71: 19-CESH-12962 Performance Outcomes FY 23-24.docx
A72: List supporting documentation and any comments. If "No" or "N/A" was selected above, please clarify.
A73: Planned outcomes for WestCare California, Inc. during FY 23-24 are included in the attachment.
A74: 4. Provide a copy of any income the AE or subrecipient received from funded activities (program income) earned from the CESH FUND, such as interest earned. CESH NOFA: Section II, F(6) consistent with the requirements of the CESH program for the eligible activities described in Section II.B. Note: Supporting documentation may include bank statements, general ledger, etc.
A75: Documentation Attached? | D75: Yes | G75: Title of Attached Documentation: | L75: 19-CESH-12962 Program Earnings FY 22-23.xlsx
A76: List supporting documentation and any comments. If "No" or "N/A" was selected above, please clarify.
A77: Program income includes interest earned in the 19-CESH-12962 revenue fund and the Capitalized Operating Subsidy Reserve account.
A78: 5a. Program Income earned during this reporting period: | F78: 1196.22 | I78: 5b. Approximate Number of Households to be assisted with this period's Program Income (including interest earned): | N78: 1
A79: 6. Have you performed an onsite monitoring visit of subrecipients and/or any other services providers? Standard Agreement: Exhibit D, Section 5, Part A One site visit is required at least once during the grant period. Submit proof of site visit and outcome of site visit. | N79: No
A80: Documentation Attached? | D80: N/A | G80: Date of most recent site visit (MM/DD/YYYY):
A81: In the box below, provide all site visit dates by sub-recipient/other service providers. Be sure to break down all date(s) by the name of the subrecipient/other service provider.
A82: Onsite monitoring was not performed during this reporting period. However, onsite monitoring visits are planned for early FY 23-24.
A83: 7. Please share any success stories you’ve had from CESH funded projects. Be sure to include both project-level and client-level successes.
A84: In the last 12 months The Landlord Engagement and Mitigation Fund has maintained a pool of 44 landlords. Through these efforts the program has been able to successfully house at least 30 high barrier households. The Landlord Locator enrolled an individual with multiple housing barriers into the Certified Ready to Rent Tenancy Education Program to help her achieve her goal of permanent housing. The individual gained the skills necessary to be successful in her housing, and the Landlord Locator advocated on the individual’s behalf with a landlord. The individual was approved for a unit and now engages with her Housing Specialist regularly, follows her budget, and utilizes the skills of her tenancy education to maintain her success. Her credit is improving, and her baby was born into a stable home. She even started a patio garden that is thriving just like her household, and her daughter is excited about having her own room.

Sheet 4. HMIS Data
A1: HMIS Data
A4: Entity Name: | G4: ='1. Contact Info & Certification'!$E$19 -> County of Fresno, Department of Social Services | M4: Contract # | S4: ='1. Contact Info & Certification'!$E$16 -> 19-CESH-12962
A5: Instructions: Identify the project or system performance measured based on HMIS data from the CoC service area for only this reporting period. Please ensure that if you have reported on certain persons on a previous report, you are not reporting them again. Report outcomes in whole numbers only. BE SURE TO REFERENCE ANY ASTERISKS (*) AS THEY WILL PROVIDE MORE DETAILS ON THE PROPER WAY TO COMPLETE THE REPORT. Certify that each activity is administered consistent with Housing First as described in §II.G of the NOFA. Refer to "Expenditure Breakdown" tab for Activity descriptions and corresponding #. If you have an identified performance measure other than the one's listed, please utilize the "Other Identified Performance Measure" sections and provide a short description of the measure and its numerical outcome.
A6: Activity Descriptions
A7: Activity #1 | C7: Rental assistance, housing relocation & stabilization services to ensure housing affordability to individuals experiencing homelessness or who are at risk of homelessness. | M7: Activity #2 | O7: Operating subsidies in the form of 15-year capitalized operating reserves for new and existing affordable permanent housing units for homeless individuals and/or families.
A8: Activity #3 | C8: Flexible housing subsidy funds for local programs that establish or support the provision of rental subsidies in permanent housing to assist homeless individuals & families. | M8: Activity #4 | O8: Operating support for emergency housing interventions including but not limited to: navigation centers, street outreach, and shelter diversion. The AE shall not use more than 40% of any funds allocated in a fiscal year for this activity.
A9: Activity #5 | C9: Systems support for activities necessary to maintain a comprehensive homeless services and housing delivery system, including Coordinated Entry System (CES) data, and Homeless Management Information System (HMIS) reporting, and homelessness planning activities. | M9: Activity #6 | O9: Develop or update a CES, if the CoC does not have a system in place that meets the applicable HUD requirements, as set forth in Section II.E.3.b of the NOFA. Eligible costs do not include capital development activities.
A10: Activity #7 | C10: Development of a plan addressing actions to be taken within the CoC service area if no such plan exists. Plan shall be submitted to HCD prior to expiration of HCD contract.
A11: Performance Measures | W11: Housing First
A12: Activity | C12: Total Number of Homeless Persons Served this Reporting Period (in whole numbers)* | E12: Number of Unsheltered Homeless Persons Served this Reporting Period (in whole numbers)** | G12: Number of persons at risk of homelessness served in this reporting period (in whole numbers) | I12: Average length of time, in days, spent as homeless before entry into program or project in this Reporting Period (in whole numbers) | K12: Number of homeless persons exiting the program or project into permanent housing in this Reporting Period (in whole numbers) | M12: Number of persons that return to homelessness after exiting the program or project within this Reporting Period (in whole numbers) | O12: Other Identified Performance Measure #1 | P12: Numerical outcome (in whole numbers) | Q12: Other Identified Performance Measure #2 | R12: Numerical outcome (in whole numbers) | S12: Other Identified Performance Measure #3 | U12: Numerical outcome (in whole numbers) | V12: Total Number of Homeless Persons Served Since Inception of Program | W12: AE or subrecipient administered activity consistent with Housing First?
A14: 1 | C14: 141 | E14: 23 | G14: 0 | I14: 314 | K14: 1 | M14: 1 | V14: 141 | W14: Yes
A15: 2 | W15: Select One
A16: 3 | W16: Select One
A17: 4 | W17: Select One
A18: 5 | W18: Select One
A19: 6 | W19: Select One
A20: 7 | W20: Select One
A21: Totals: | C21: =SUM(C14:D20) -> 141 | E21: =SUM(E14:F20) -> 23 | G21: =SUM(G14:H20) -> 0 | I21: =SUM(I14:J20) -> 314 | K21: =SUM(K14:L20) -> 1 | M21: =SUM(M14:N20) -> 1 | P21: =SUM(P14:P20) -> 0 | R21: =SUM(R14:R20) -> 0 | U21: =SUM(U14:U20) -> 0 | V21: =SUM(V14:V20) -> 141
A22: *This figure should represent the total number of participants served with program funds this reporting period.
A23: **This figure should represent a SUBSET of "Total Number of Homeless Persons Served this Reporting Period (in whole numbers)."
A24: Instructions: If your project collects data on the following sub-populations, please provide figures number of individuals served this reporting period.
A25: If your project served Transitional Aged Youth "TAY" (16-24 years of age), please provide the number of TAY individuals served with CESH funds this reporting period: | U25: 18
A26: If your project served Seniors (65 years of age or older), please provide the number of Seniors served with CESH funds this reporting period: | U26: 15
A27: If your project served families with minor children (below 16 years of age), please provide the number of minor children housed with CESH funds this reporting period: | U27: 21
A28: Instructions: Please use the comment box below to elaborate on Other Identified Performance Measure(s) or to provide any other additional information.

Sheet 5. Review Book (hidden)
A2: California Emergency Solutions and Housing (CESH)
A4: Review Workbook
A6: Section 1 | P6: This box can be used to add additional comments regarding Sections 1-Section 5
A7: General Information
A8: Rep Information | D8: Reviewing Rep Name | J8: Review Start Date | M8: Review End Date
A10: Manager Information | D10: Reviewing Manager Name | J10: Review Start Date | M10: Review End Date
A12: General Applicant Information | D12: Applicant Name | J12: Contract #
D13: ='1. Contact Info & Certification'!$E$19 -> County of Fresno, Department of Social Services | J13: ='1. Contact Info & Certification'!$E$16 -> 19-CESH-12962
D14: COC Name | J14: COC #
D15: ='1. Contact Info & Certification'!$E$34 -> Fresno Madera Continuum of Care | J15: ='1. Contact Info & Certification'!$E$35 -> CA-514
A16: Section 2
A17: Contract Expenditures
A18: Activity # | B18: HCD Approved Budget Amount (based on current Budget Revision Form, if applicable) | D18: HCD Approved Budget Amount Confirmed? | E18: Total Amount Disbursed | F18: Total Amount Disbursed Confirmed? | G18: Amount Expended (as reported in Annual Report) | H18: Amount Expended (as reported in Annual Report) Confirmed? | J18: Amount Expended Prior to this Reporting Period | L18: Amount Expended Prior to this Reporting Period Confirmed? | M18: Total Amount Disbursed | N18: Total Amount Expended | O18: Amount of Award Not Yet Disbursed | P18: Does Supporting Documentation reconcile with RFF amounts submitted to date? | R18: Comments
A19: 1 | B19: ='2. Expenditure Breakdown'!G9 -> 685317 | D19: Select One | E19: ='2. Expenditure Breakdown'!I9 -> 533253 | F19: Select One | G19: ='2. Expenditure Breakdown'!J9 -> 319811.72 | H19: Select One | J19: ='2. Expenditure Breakdown'!N9 -> 215237.31 | L19: Select One | M19: ='2. Expenditure Breakdown'!Q9 -> 533253 | N19: ='2. Expenditure Breakdown'!R9 -> 535049.03 | O19: ='2. Expenditure Breakdown'!T9 -> 152064 | P19: Select One
A20: 2 | B20: ='2. Expenditure Breakdown'!G10 -> 0 | D20: Select One | E20: ='2. Expenditure Breakdown'!I10 -> 0 | F20: Select One | G20: ='2. Expenditure Breakdown'!J10 -> 0 | H20: Select One | J20: ='2. Expenditure Breakdown'!N10 -> 0 | L20: Select One | M20: ='2. Expenditure Breakdown'!Q10 -> 0 | N20: ='2. Expenditure Breakdown'!R10 -> 0 | O20: ='2. Expenditure Breakdown'!T10 -> 0 | P20: Select One
A21: 3 | B21: ='2. Expenditure Breakdown'!G11 -> 0 | D21: Select One | E21: ='2. Expenditure Breakdown'!I11 -> 0 | F21: Select One | G21: ='2. Expenditure Breakdown'!J11 -> 0 | H21: Select One | J21: ='2. Expenditure Breakdown'!N11 -> 0 | L21: Select One | M21: ='2. Expenditure Breakdown'!Q11 -> 0 | N21: ='2. Expenditure Breakdown'!R11 -> 0 | O21: ='2. Expenditure Breakdown'!T11 -> 0 | P21: Select One
A22: 4 | B22: ='2. Expenditure Breakdown'!G12 -> 0 | D22: Select One | E22: ='2. Expenditure Breakdown'!I12 -> 0 | F22: Select One | G22: ='2. Expenditure Breakdown'!J12 -> 0 | H22: Select One | J22: ='2. Expenditure Breakdown'!N12 -> 0 | L22: Select One | M22: ='2. Expenditure Breakdown'!Q12 -> 0 | N22: ='2. Expenditure Breakdown'!R12 -> 0 | O22: ='2. Expenditure Breakdown'!T12 -> 0 | P22: Select One
A23: 5 | B23: ='2. Expenditure Breakdown'!G13 -> 75000 | D23: Select One | E23: ='2. Expenditure Breakdown'!I13 -> 60000 | F23: Select One | G23: ='2. Expenditure Breakdown'!J13 -> 9210 | H23: Select One | J23: ='2. Expenditure Breakdown'!N13 -> 0 | L23: Select One | M23: ='2. Expenditure Breakdown'!Q13 -> 60000 | N23: ='2. Expenditure Breakdown'!R13 -> 9210 | O23: ='2. Expenditure Breakdown'!T13 -> 15000 | P23: Select One
A24: 6 | B24: ='2. Expenditure Breakdown'!G14 -> 0 | D24: Select One | E24: ='2. Expenditure Breakdown'!I14 -> 0 | F24: Select One | G24: ='2. Expenditure Breakdown'!J14 -> 0 | H24: Select One | J24: ='2. Expenditure Breakdown'!N14 -> 0 | L24: Select One | M24: ='2. Expenditure Breakdown'!Q14 -> 0 | N24: ='2. Expenditure Breakdown'!R14 -> 0 | O24: ='2. Expenditure Breakdown'!T14 -> 0 | P24: Select One
A25: 7 | B25: ='2. Expenditure Breakdown'!G15 -> 75000 | D25: Select One | E25: ='2. Expenditure Breakdown'!I15 -> 75000 | F25: Select One | G25: ='2. Expenditure Breakdown'!J15 -> 56750 | H25: Select One | J25: ='2. Expenditure Breakdown'!N15 -> 0 | L25: Select One | M25: ='2. Expenditure Breakdown'!Q15 -> 75000 | N25: ='2. Expenditure Breakdown'!R15 -> 56750 | O25: ='2. Expenditure Breakdown'!T15 -> 0 | P25: Select One
A26: Admin | B26: ='2. Expenditure Breakdown'!G16 -> 43964 | D26: Select One | E26: ='2. Expenditure Breakdown'!I16 -> 35170 | F26: Select One | G26: ='2. Expenditure Breakdown'!J16 -> 18575.4 | H26: Select One | J26: ='2. Expenditure Breakdown'!N16 -> 0 | L26: Select One | M26: ='2. Expenditure Breakdown'!Q16 -> 35170 | N26: ='2. Expenditure Breakdown'!R16 -> 18575.4 | O26: ='2. Expenditure Breakdown'!T16 -> 8794 | P26: Select One
A27: Totals: | B27: =SUM(B19:B26) -> 879281 | E27: =SUM(E19:E26) -> 703423 | G27: =SUM(G19:G26) -> 404347.12 | J27: =SUM(J19:J26) -> 215237.31 | M27: ='2. Expenditure Breakdown'!Q17 -> 703423 | N27: =SUM(N19:N26) -> 619584.43 | O27: =SUM(O19:O26) -> 175858
A28: Section 3 | P28: Section 4
A29: Amounts Awarded to Subrecipient | P29: Selection Process
A30: Activity # | B30: HCD Approved Budget Amount (based on current Budget Revision Form, if applicable) | D30: Amount Awarded to Subreceipients Standard Agreement: Exhibit D, Section 6, Part B(2) | G30: Does Supporting Documentation include amount awarded to subrecipient? | J30: Does Supporting Documentation include a description of the eligible CESH Activity to be performed by subrecipient? | M30: Does Supporting Documentation include the date of award to the subrecipient? | P30: Activity # | R30: Type of Supporting documentation submitted? | W30: Does Supporting Documentation show the selection process was performed in collaboration with the CoC? | X30: Comments
A31: 1 | B31: ='2. Expenditure Breakdown'!G9 -> 685317 | G31: Select One | J31: Select One | M31: Select One | P31: 1 | W31: Select One
A32: 2 | B32: ='2. Expenditure Breakdown'!G10 -> 0 | G32: Select One | J32: Select One | M32: Select One | P32: 2 | W32: Select One
A33: 3 | B33: ='2. Expenditure Breakdown'!G11 -> 0 | G33: Select One | J33: Select One | M33: Select One | P33: 3 | W33: Select One
A34: 4 | B34: ='2. Expenditure Breakdown'!G12 -> 0 | G34: Select One | J34: Select One | M34: Select One | P34: 4 | W34: Select One
A35: 5 | B35: ='2. Expenditure Breakdown'!G13 -> 75000 | G35: Select One | J35: Select One | M35: Select One | P35: 5 | W35: Select One
A36: 6 | B36: ='2. Expenditure Breakdown'!G14 -> 0 | G36: Select One | J36: Select One | M36: Select One | P36: 6 | W36: Select One
A37: 7 | B37: ='2. Expenditure Breakdown'!G15 -> 75000 | G37: Select One | J37: Select One | M37: Select One | P37: 7 | W37: Select One
A38: Admin | B38: ='2. Expenditure Breakdown'!G16 -> 43964 | G38: Select One | J38: Select One | M38: Select One | P38: Admin | W38: Select One
A39: Section 5
A40: Performance Measures | U40: Housing First | W40: Comments
A41: Activity # | B41: Number of Homeless Persons served | D41: Number of unsheltered homeless persons served | F41: Number of persons at risk of homelessness served | H41: Average length of time, in days, spent as homeless before entry into program or project | J41: Number of homeless persons exiting the program or project into permanent housing | L41: Number of persons that return to homlessness after exiting the program or project | N41: Other identified performance measure #1 | O41: Numerical outcome | P41: Other identified performance measure #2 | Q41: Numerical outcome | R41: Other identified performance measure #3 | S41: Numerical outcome | T41: Total Number of Homeless Persons Served Since Inception of Program | U41: AE or subrecipient administered activity consistent with Housing First
A42: 1 | B42: ='4. HMIS Data'!C14 -> 141 | D42: ='4. HMIS Data'!E14 -> 23 | F42: ='4. HMIS Data'!G14 -> 0 | H42: ='4. HMIS Data'!I14 -> 314 | J42: ='4. HMIS Data'!K14 -> 1 | L42: ='4. HMIS Data'!M14 -> 1 | N42: ='4. HMIS Data'!O14 -> 0 | O42: ='4. HMIS Data'!P14 -> 0 | P42: ='4. HMIS Data'!Q14 -> 0 | Q42: ='4. HMIS Data'!R14 -> 0 | R42: ='4. HMIS Data'!S14 -> 0 | S42: ='4. HMIS Data'!U14 -> 0 | T42: ='4. HMIS Data'!V14 -> 141 | U42: Select One
A43: 2 | B43: ='4. HMIS Data'!C15 -> 0 | D43: ='4. HMIS Data'!E15 -> 0 | F43: ='4. HMIS Data'!G15 -> 0 | H43: ='4. HMIS Data'!I15 -> 0 | J43: ='4. HMIS Data'!K15 -> 0 | L43: ='4. HMIS Data'!M15 -> 0 | N43: ='4. HMIS Data'!O15 -> 0 | O43: ='4. HMIS Data'!P15 -> 0 | P43: ='4. HMIS Data'!Q15 -> 0 | Q43: ='4. HMIS Data'!R15 -> 0 | R43: ='4. HMIS Data'!S15 -> 0 | S43: ='4. HMIS Data'!U15 -> 0 | T43: ='4. HMIS Data'!V15 -> 0 | U43: Select One
A44: 3 | B44: ='4. HMIS Data'!C16 -> 0 | D44: ='4. HMIS Data'!E16 -> 0 | F44: ='4. HMIS Data'!G16 -> 0 | H44: ='4. HMIS Data'!I16 -> 0 | J44: ='4. HMIS Data'!K16 -> 0 | L44: ='4. HMIS Data'!M16 -> 0 | N44: ='4. HMIS Data'!O16 -> 0 | O44: ='4. HMIS Data'!P16 -> 0 | P44: ='4. HMIS Data'!Q16 -> 0 | Q44: ='4. HMIS Data'!R16 -> 0 | R44: ='4. HMIS Data'!S16 -> 0 | S44: ='4. HMIS Data'!U16 -> 0 | T44: ='4. HMIS Data'!V16 -> 0 | U44: Select One
A45: 4 | B45: ='4. HMIS Data'!C17 -> 0 | D45: ='4. HMIS Data'!E17 -> 0 | F45: ='4. HMIS Data'!G17 -> 0 | H45: ='4. HMIS Data'!I17 -> 0 | J45: ='4. HMIS Data'!K17 -> 0 | L45: ='4. HMIS Data'!M17 -> 0 | N45: ='4. HMIS Data'!O17 -> 0 | O45: ='4. HMIS Data'!P17 -> 0 | P45: ='4. HMIS Data'!Q17 -> 0 | Q45: ='4. HMIS Data'!R17 -> 0 | R45: ='4. HMIS Data'!S17 -> 0 | S45: ='4. HMIS Data'!U17 -> 0 | T45: ='4. HMIS Data'!V17 -> 0 | U45: Select One
A46: 5 | B46: ='4. HMIS Data'!C18 -> 0 | D46: ='4. HMIS Data'!E18 -> 0 | F46: ='4. HMIS Data'!G18 -> 0 | H46: ='4. HMIS Data'!I18 -> 0 | J46: ='4. HMIS Data'!K18 -> 0 | L46: ='4. HMIS Data'!M18 -> 0 | N46: ='4. HMIS Data'!O18 -> 0 | O46: ='4. HMIS Data'!P18 -> 0 | P46: ='4. HMIS Data'!Q18 -> 0 | Q46: ='4. HMIS Data'!R18 -> 0 | R46: ='4. HMIS Data'!S18 -> 0 | S46: ='4. HMIS Data'!U18 -> 0 | T46: ='4. HMIS Data'!V18 -> 0 | U46: Select One
A47: 6 | B47: ='4. HMIS Data'!C19 -> 0 | D47: ='4. HMIS Data'!E19 -> 0 | F47: ='4. HMIS Data'!G19 -> 0 | H47: ='4. HMIS Data'!I19 -> 0 | J47: ='4. HMIS Data'!K19 -> 0 | L47: ='4. HMIS Data'!M19 -> 0 | N47: ='4. HMIS Data'!O19 -> 0 | O47: ='4. HMIS Data'!P19 -> 0 | P47: ='4. HMIS Data'!Q19 -> 0 | Q47: ='4. HMIS Data'!R19 -> 0 | R47: ='4. HMIS Data'!S19 -> 0 | S47: ='4. HMIS Data'!U19 -> 0 | T47: ='4. HMIS Data'!V19 -> 0 | U47: Select One
A48: 7 | B48: ='4. HMIS Data'!C20 -> 0 | D48: ='4. HMIS Data'!E20 -> 0 | F48: ='4. HMIS Data'!G20 -> 0 | H48: ='4. HMIS Data'!I20 -> 0 | J48: ='4. HMIS Data'!K20 -> 0 | L48: ='4. HMIS Data'!M20 -> 0 | N48: ='4. HMIS Data'!O20 -> 0 | O48: ='4. HMIS Data'!P20 -> 0 | P48: ='4. HMIS Data'!Q20 -> 0 | Q48: ='4. HMIS Data'!R20 -> 0 | R48: ='4. HMIS Data'!S20 -> 0 | S48: ='4. HMIS Data'!U20 -> 0 | T48: ='4. HMIS Data'!V20 -> 0 | U48: Select One

Sheet Will be Hidden (hidden)
A1: Select One | H1: Select One
A2: Certification by Printed Name | H2: 1
A3: Certification by Signature | H3: 2
H4: 3
H5: 4
H6: 5
A7: Select One | H7: 6
A8: Initial Fund Disbursement - 6/30/2020 | H8: 7
A9: 7/01/2020 - 6/30/2021 | H9: 8
A10: 7/01/2021 - 6/30/2022 | H10: 9
A11: 7/01/2022 - 6/30/2023 | H11: 10
A12: 7/01/2023 - 6/30/2024
A13: 7/01/2024 - 6/30/2025
A17: Select One
A18: Administrative Entity
A19: Subrecipient
A20: Administrative Entity and Subrecipient
A21: Select One
A22: Activity #1
A23: Activity #2
A24: Activity #3
A25: Activity #4
A26: Activity #5
A27: Activity #6
A28: Activity #7
A29: Admin

Sheet Data Tab (hidden)
A1: HCD Contract # | B1: Reporting Period | C1: Admin Entity Name | D1: Admin Entity Address (number and street) | E1: Admin Entity City | F1: Admin Entity State | G1: Admin Entity Zip | H1: Admin Entity County | I1: Authorized Rep Name | J1: Authorized Rep Title | K1: Authorized Rep Email Address | L1: Authorized Rep Phone Number | M1: Contact Name | N1: Contract Title | O1: Contract Email Address | P1: Contract Phone Number | Q1: CoC Service Area | R1: CoC Address | S1: CoC City | T1: CoC State | U1: CoC Zip | V1: CoC # | W1: Activity #1 Award Amount | X1: Activity #1 Total Amount Disbursed | Y1: Activity #1 Amount of Award Expended this Reporting Period | Z1: Activity #1 Amount Expended By | AA1: Activity #1 Name of Subrecipient Expending Funds (if applicable) | AB1: Activity #1 Amount Expended Prior to this Reporting Period | AC1: Activity #1 Proof of Expenditures for this Reporting Period Attached? | AD1: Activity #1 Total Amount Expended | AE1: Activity #1 Percent Expended | AF1: Activity #1 Amount of Award Not Yet Disbursed | AG1: Activity #2 Award Amount | AH1: Activity #2 Total Amount Disbursed | AI1: Activity #2 Amount of Award Expended this Reporting Period | AJ1: Activity #2 Amount Expended By | AK1: Activity #2 Name of Subrecipient Expending Funds (if applicable) | AL1: Activity #2 Amount Expended Prior to this Reporting Period | AM1: Activity #2 Proof of Expenditures for this Reporting Period Attached? | AN1: Activity #2 Total Amount Expended | AO1: Activity #2 Percent Expended | AP1: Activity #2 Amount of Award Not Yet Disbursed | AQ1: Activity #3 Award Amount | AR1: Activity #3 Total Amount Disbursed | AS1: Activity #3 Amount of Award Expended this Reporting Period | AT1: Activity #3 Amount Expneded By | AU1: Activity #3 Name of Subrecipient Expending Funds (if applicable) | AV1: Activity #3 Amount Expended Prior to this Reporting Period | AW1: Activity #3 Proof of Expenditures for this Reporting Period Attached? | AX1: Activity #3 Total Amount Expended | AY1: Activity #3 Percent Expended | AZ1: Activity #3 Amount of Award Not Yet Disbursed | BA1: Activity #4 Award Amount | BB1: Activity #4 Total Amount Disbursed | BC1: Activity #4 Amount of Award Expended this Reporting Period | BD1: Activity #4 Amount Expneded By | BE1: Activity #4 Name of Subrecipient Expending Funds (if applicable) | BF1: Activity #4 Amount Expended Prior to this Reporting Period | BG1: Activity #4 Proof of Expenditures for this Reporting Period Attached? | BH1: Activity #4 Total Amount Expended | BI1: Activity #4 Percent Expended | BJ1: Activity #4 Amount of Award Not Yet Disbursed | BK1: Activity #5 Award Amount | BL1: Activity #5 Total Amount Disbursed | BM1: Activity #5 Amount of Award Expended this Reporting Period | BN1: Activity #5 Amount Expneded By | BO1: Activity #5 Name of Subrecipient Expending Funds (if applicable) | BP1: Activity #5 Amount Expended Prior to this Reporting Period | BQ1: Activity #5 Proof of Expenditures for this Reporting Period Attached? | BR1: Activity #5 Total Amount Expended | BS1: Activity #5 Percent Expended | BT1: Activity #5 Amount of Award Not Yet Disbursed | BU1: Activity #6 Award Amount | BV1: Activity #6 Total Amount Disbursed | BW1: Activity #6 Amount of Award Expended this Reporting Period | BX1: Activity #6 Amount Expneded By | BY1: Activity #6 Name of Subrecipient Expending Funds (if applicable) | BZ1: Activity #6 Amount Expended Prior to this Reporting Period | CA1: Activity #6 Proof of Expenditures for this Reporting Period Attached? | CB1: Activity #6 Total Amount Expended | CC1: Activity #6 Percent Expended | CD1: Activity #6 Amount of Award Not Yet Disbursed | CE1: Activity #7 Award Amount | CF1: Activity #7 Total Amount Disbursed | CG1: Activity #7 Amount of Award Expended this Reporting Period | CH1: Activity #7 Amount Expneded By | CI1: Activity #7 Name of Subrecipient Expending Funds (if applicable) | CJ1: Activity #7 Amount Expended Prior to this Reporting Period | CK1: Activity #7 Proof of Expenditures for this Reporting Period Attached? | CL1: Activity #7 Total Amount Expended | CM1: Activity #7 Percent Expended | CN1: Activity #7 Amount of Award Not Yet Disbursed | CO1: Activity Admin Award Amount | CP1: Activity Admin Total Amount Disbursed | CQ1: Activity Admin Amount of Award Expended this Reporting Period | CR1: Activity Admin Amount Expneded By | CS1: Activity Admin Name of Subrecipient Expending Funds (if applicable) | CT1: Activity Admin Amount Expended Prior to this Reporting Period | CU1: Activity Admin Proof of Expenditures for this Reporting Period Attached? | CV1: Activity Admin Total Amount Expended | CW1: Activity Admin Percent Expended | CX1: Activity Admin Amount of Award Not Yet Disbursed | CY1: Number of Subrecipients Awarded Funds | CZ1: Program Income Earned During This Reporting Period | DA1: Approximate Number of Households to be Assisted with this Periods Program Income | DB1: Success Stories for CESH Funded Projects | DC1: Activity #1: Total Number of Homeless Persons Served this Reporting Period (in whole numbers) | DD1: Activity #1: Number of Unsheltered Homeless Persons Served this Reporting Period (in whole numbers) | DE1: Activity #1: Number of persons at risk of homelessness served in this reporting period (in whole numbers) | DF1: Activity #1: Average length of time, in days, spent as homeless before entry into program or project in this Reporting Period (in whole numbers) | DG1: Activity #1: Number of homeless persons exiting the program or project into permanent housing in this Reporting Period (in whole numbers) | DH1: Activity #1: Number of persons that return to homelessness after exiting the program or project within this Reporting Period (in whole numbers) | DI1: Activity #1: Other Identified Performance Measure 1 | DJ1: Activity #1: Other Identified Performance Measure (1) Numerical Outcome | DK1: Activity #1: Other Identified Performance Measure 2 | DL1: Activity #1: Other Identified Performance Measure (2) Numerical Outcome | DM1: Activity #1: Other Identified Performance Measure 3 | DN1: Activity #1: Other Identified Performance Measure (3) Numerical Outcome | DO1: Activity #1: Total Number of Homeless Persons Served Since Inception of Program | DP1: Activity #1: AE or subrecipient administered activity consistent with Housing First? | DQ1: Activity #2: Total Number of Homeless Persons Served this Reporting Period (in whole numbers) | DR1: Activity #2: Number of Unsheltered Homeless Persons Served this Reporting Period (in whole numbers) | DS1: Activity #2: Number of persons at risk of homelessness served in this reporting period (in whole numbers) | DT1: Activity #2: Average length of time, in days, spent as homeless before entry into program or project in this Reporting Period (in whole numbers) | DU1: Activity #2: Number of homeless persons exiting the program or project into permanent housing in this Reporting Period (in whole numbers) | DV1: Activity #2: Number of persons that return to homelessness after exiting the program or project within this Reporting Period (in whole numbers) | DW1: Activity #2: Other Identified Performance Measure 1 | DX1: Activity #2: Other Identified Performance Measure (1) Numerical Outcome | DY1: Activity #2: Other Identified Performance Measure 2 | DZ1: Activity #2: Other Identified Performance Measure (2) Numerical Outcome | EA1: Activity #2: Other Identified Performance Measure 3 | EB1: Activity #2: Other Identified Performance Measure (3) Numerical Outcome | EC1: Activity #2: Total Number of Homeless Persons Served Since Inception of Program | ED1: Activity #2: AE or subrecipient administered activity consistent with Housing First? | EE1: Activity #3: Total Number of Homeless Persons Served this Reporting Period (in whole numbers) | EF1: Activity #3: Number of Unsheltered Homeless Persons Served this Reporting Period (in whole numbers) | EG1: Activity #3: Number of persons at risk of homelessness served in this reporting period (in whole numbers) | EH1: Activity #3: Average length of time, in days, spent as homeless before entry into program or project in this Reporting Period (in whole numbers) | EI1: Activity #3: Number of homeless persons exiting the program or project into permanent housing in this Reporting Period (in whole numbers) | EJ1: Activity #3: Number of persons that return to homelessness after exiting the program or project within this Reporting Period (in whole numbers) | EK1: Activity #3: Other Identified Performance Measure 1 | EL1: Activity #3: Other Identified Performance Measure (1) Numerical Outcome | EM1: Activity #3: Other Identified Performance Measure 2 | EN1: Activity #3: Other Identified Performance Measure (2) Numerical Outcome | EO1: Activity #3: Other Identified Performance Measure 3 | EP1: Activity #3: Other Identified Performance Measure (3) Numerical Outcome | EQ1: Activity #3: Total Number of Homeless Persons Served Since Inception of Program | ER1: Activity #3: AE or subrecipient administered activity consistent with Housing First? | ES1: Activity #4: Total Number of Homeless Persons Served this Reporting Period (in whole numbers) | ET1: Activity #4: Number of Unsheltered Homeless Persons Served this Reporting Period (in whole numbers) | EU1: Activity #4: Number of persons at risk of homelessness served in this reporting period (in whole numbers) | EV1: Activity #4: Average length of time, in days, spent as homeless before entry into program or project in this Reporting Period (in whole numbers) | EW1: Activity #4: Number of homeless persons exiting the program or project into permanent housing in this Reporting Period (in whole numbers) | EX1: Activity #4: Number of persons that return to homelessness after exiting the program or project within this Reporting Period (in whole numbers) | EY1: Activity #4: Other Identified Performance Measure 1 | EZ1: Activity #4: Other Identified Performance Measure (1) Numerical Outcome | FA1: Activity #4: Other Identified Performance Measure 2 | FB1: Activity #4: Other Identified Performance Measure (2) Numerical Outcome | FC1: Activity #4: Other Identified Performance Measure 3 | FD1: Activity #4: Other Identified Performance Measure (3) Numerical Outcome | FE1: Activity #4: Total Number of Homeless Persons Served Since Inception of Program | FF1: Activity #4: AE or subrecipient administered activity consistent with Housing First? | FG1: Activity #5: Total Number of Homeless Persons Served this Reporting Period (in whole numbers) | FH1: Activity #5: Number of Unsheltered Homeless Persons Served this Reporting Period (in whole numbers) | FI1: Activity #5: Number of persons at risk of homelessness served in this reporting period (in whole numbers) | FJ1: Activity #5: Average length of time, in days, spent as homeless before entry into program or project in this Reporting Period (in whole numbers) | FK1: Activity #5: Number of homeless persons exiting the program or project into permanent housing in this Reporting Period (in whole numbers) | FL1: Activity #5: Number of persons that return to homelessness after exiting the program or project within this Reporting Period (in whole numbers) | FM1: Activity #5: Other Identified Performance Measure 1 | FN1: Activity #5: Other Identified Performance Measure (1) Numerical Outcome | FO1: Activity #5: Other Identified Performance Measure 2 | FP1: Activity #5: Other Identified Performance Measure (2) Numerical Outcome | FQ1: Activity #5: Other Identified Performance Measure 3 | FR1: Activity #5: Other Identified Performance Measure (3) Numerical Outcome | FS1: Activity #5: Total Number of Homeless Persons Served Since Inception of Program | FT1: Activity #5: AE or subrecipient administered activity consistent with Housing First? | FU1: Activity #6: Total Number of Homeless Persons Served this Reporting Period (in whole numbers) | FV1: Activity #6: Number of Unsheltered Homeless Persons Served this Reporting Period (in whole numbers) | FW1: Activity #6: Number of persons at risk of homelessness served in this reporting period (in whole numbers) | FX1: Activity #6: Average length of time, in days, spent as homeless before entry into program or project in this Reporting Period (in whole numbers) | FY1: Activity #6: Number of homeless persons exiting the program or project into permanent housing in this Reporting Period (in whole numbers) | FZ1: Activity #6: Number of persons that return to homelessness after exiting the program or project within this Reporting Period (in whole numbers) | GA1: Activity #6: Other Identified Performance Measure 1 | GB1: Activity #6: Other Identified Performance Measure (1) Numerical Outcome | GC1: Activity #6: Other Identified Performance Measure 2 | GD1: Activity #6: Other Identified Performance Measure (2) Numerical Outcome | GE1: Activity #6: Other Identified Performance Measure 3 | GF1: Activity #6: Other Identified Performance Measure (3) Numerical Outcome | GG1: Activity #6: Total Number of Homeless Persons Served Since Inception of Program | GH1: Activity #6: AE or subrecipient administered activity consistent with Housing First? | GI1: Activity #7: Total Number of Homeless Persons Served this Reporting Period (in whole numbers) | GJ1: Activity #7: Number of Unsheltered Homeless Persons Served this Reporting Period (in whole numbers) | GK1: Activity #7: Number of persons at risk of homelessness served in this reporting period (in whole numbers) | GL1: Activity #7: Average length of time, in days, spent as homeless before entry into program or project in this Reporting Period (in whole numbers) | GM1: Activity #7: Number of homeless persons exiting the program or project into permanent housing in this Reporting Period (in whole numbers) | GN1: Activity #7: Number of persons that return to homelessness after exiting the program or project within this Reporting Period (in whole numbers) | GO1: Activity #7: Other Identified Performance Measure 1 | GP1: Activity #7: Other Identified Performance Measure (1) Numerical Outcome | GQ1: Activity #7: Other Identified Performance Measure 2 | GR1: Activity #7: Other Identified Performance Measure (2) Numerical Outcome | GS1: Activity #7: Other Identified Performance Measure 3 | GT1: Activity #7: Other Identified Performance Measure (3) Numerical Outcome | GU1: Activity #7: Total Number of Homeless Persons Served Since Inception of Program | GV1: Activity #7: AE or subrecipient administered activity consistent with Housing First? | GW1: TAY Served This Reporting Period | GX1: Seniors Served This Reporting Period | GY1: Familes with Minor Children Served this Reporting Period
A2: ='1. Contact Info & Certification'!$E$16 -> 19-CESH-12962 | B2: ='1. Contact Info & Certification'!$L$16 -> 7/01/2022 - 6/30/2023 | C2: ='1. Contact Info & Certification'!$E$19 -> County of Fresno, Department of Social Services | D2: ='1. Contact Info & Certification'!$E$20 -> PO Box 1912 | E2: ='1. Contact Info & Certification'!$E$21 -> Fresno | F2: ='1. Contact Info & Certification'!$L$21 -> CA | G2: ='1. Contact Info & Certification'!$E$22 -> 93718 | H2: ='1. Contact Info & Certification'!$L$22 -> Fresno | I2: ='1. Contact Info & Certification'!$E$24 -> Sanja Bugay | J2: ='1. Contact Info & Certification'!$E$25 -> Director, County of Fresno DSS | K2: ='1. Contact Info & Certification'!$E$26 -> sbugay@fresnocountyca.gov | L2: ='1. Contact Info & Certification'!$E$27 -> 559-600-2301 | M2: ='1. Contact Info & Certification'!$E$29 -> Laura Moreno | N2: ='1. Contact Info & Certification'!$E$30 -> Program Manager | O2: ='1. Contact Info & Certification'!$E$31 -> lhaga@fresnocountyca.gov | P2: ='1. Contact Info & Certification'!$E$32 -> 559-600-2335 | Q2: ='1. Contact Info & Certification'!$E$34 -> Fresno Madera Continuum of Care | R2: ='1. Contact Info & Certification'!$L$34 -> 205 W. Pontiac Way | S2: ='1. Contact Info & Certification'!$L$35 -> Clovis | T2: ='1. Contact Info & Certification'!$L$36 -> CA | U2: ='1. Contact Info & Certification'!$L$37 -> 93612 | V2: ='1. Contact Info & Certification'!$E$35 -> CA-514 | W2: ='2. Expenditure Breakdown'!$G$9 -> 685317 | X2: ='2. Expenditure Breakdown'!$I$9 -> 533253 | Y2: ='2. Expenditure Breakdown'!$J$9 -> 319811.72 | Z2: ='2. Expenditure Breakdown'!$L$9 -> Subrecipient | AA2: ='2. Expenditure Breakdown'!$M$9 -> WestCare California, Inc., RH Community Builders | AB2: ='2. Expenditure Breakdown'!$N$9 -> 215237.31 | AC2: ='2. Expenditure Breakdown'!$P$9 -> Yes | AD2: ='2. Expenditure Breakdown'!R9 -> 535049.03 | AE2: ='2. Expenditure Breakdown'!S9 -> 0.7807321721 | AF2: ='2. Expenditure Breakdown'!T9 -> 152064 | AG2: ='2. Expenditure Breakdown'!$G$10 -> 0 | AH2: ='2. Expenditure Breakdown'!$I$10 -> 0 | AI2: ='2. Expenditure Breakdown'!$J$10 -> 0 | AJ2: ='2. Expenditure Breakdown'!$L$10 -> Select One | AK2: ='2. Expenditure Breakdown'!$M$10 -> 0 | AL2: ='2. Expenditure Breakdown'!$N$10 -> 0 | AM2: ='2. Expenditure Breakdown'!$P$10 -> N/A | AN2: ='2. Expenditure Breakdown'!R10 -> 0 | AO2: ='2. Expenditure Breakdown'!S10 -> 0 | AP2: ='2. Expenditure Breakdown'!T10 -> 0 | AQ2: ='2. Expenditure Breakdown'!$G$11 -> 0 | AR2: ='2. Expenditure Breakdown'!$I$11 -> 0 | AS2: ='2. Expenditure Breakdown'!$J$11 -> 0 | AT2: ='2. Expenditure Breakdown'!$L$11 -> Select One | AU2: ='2. Expenditure Breakdown'!$M$11 -> 0 | AV2: ='2. Expenditure Breakdown'!$N$11 -> 0 | AW2: ='2. Expenditure Breakdown'!$P$11 -> N/A | AX2: ='2. Expenditure Breakdown'!R11 -> 0 | AY2: ='2. Expenditure Breakdown'!S11 -> 0 | AZ2: ='2. Expenditure Breakdown'!T11 -> 0 | BA2: ='2. Expenditure Breakdown'!$G$12 -> 0 | BB2: ='2. Expenditure Breakdown'!$I$12 -> 0 | BC2: ='2. Expenditure Breakdown'!$J$12 -> 0 | BD2: ='2. Expenditure Breakdown'!$L$12 -> Select One | BE2: ='2. Expenditure Breakdown'!$M$12 -> 0 | BF2: ='2. Expenditure Breakdown'!$N$12 -> 0 | BG2: ='2. Expenditure Breakdown'!$P$12 -> N/A | BH2: ='2. Expenditure Breakdown'!R12 -> 0 | BI2: ='2. Expenditure Breakdown'!S12 -> 0 | BJ2: ='2. Expenditure Breakdown'!T12 -> 0 | BK2: ='2. Expenditure Breakdown'!$G$13 -> 75000 | BL2: ='2. Expenditure Breakdown'!$I$13 -> 60000 | BM2: ='2. Expenditure Breakdown'!$J$13 -> 9210 | BN2: ='2. Expenditure Breakdown'!$L$13 -> Subrecipient | BO2: ='2. Expenditure Breakdown'!$M$13 -> Housing Authority of the City of Fresno | BP2: ='2. Expenditure Breakdown'!$N$13 -> 0 | BQ2: ='2. Expenditure Breakdown'!$P$13 -> Yes | BR2: ='2. Expenditure Breakdown'!R13 -> 9210 | BS2: ='2. Expenditure Breakdown'!S13 -> 0.1228 | BT2: ='2. Expenditure Breakdown'!T13 -> 15000 | BU2: ='2. Expenditure Breakdown'!$G$14 -> 0 | BV2: ='2. Expenditure Breakdown'!$I$14 -> 0 | BW2: ='2. Expenditure Breakdown'!$J$14 -> 0 | BX2: ='2. Expenditure Breakdown'!$L$14 -> Select One | BY2: ='2. Expenditure Breakdown'!$M$14 -> 0 | BZ2: ='2. Expenditure Breakdown'!$N$14 -> 0 | CA2: ='2. Expenditure Breakdown'!$P$14 -> N/A | CB2: ='2. Expenditure Breakdown'!R14 -> 0 | CC2: ='2. Expenditure Breakdown'!S14 -> 0 | CD2: ='2. Expenditure Breakdown'!T14 -> 0 | CE2: ='2. Expenditure Breakdown'!$G$15 -> 75000 | CF2: ='2. Expenditure Breakdown'!$I$15 -> 75000 | CG2: ='2. Expenditure Breakdown'!$J$15 -> 56750 | CH2: ='2. Expenditure Breakdown'!$L$15 -> Subrecipient | CI2: ='2. Expenditure Breakdown'!$M$15 -> County of Madera, Innovative Research & Analysis LLC | CJ2: ='2. Expenditure Breakdown'!$N$15 -> 0 | CK2: ='2. Expenditure Breakdown'!$P$15 -> Yes | CL2: ='2. Expenditure Breakdown'!R15 -> 56750 | CM2: ='2. Expenditure Breakdown'!S15 -> 0.7566666667 | CN2: ='2. Expenditure Breakdown'!T15 -> 0 | CO2: ='2. Expenditure Breakdown'!$G$16 -> 43964 | CP2: ='2. Expenditure Breakdown'!$I$16 -> 35170 | CQ2: ='2. Expenditure Breakdown'!$J$16 -> 18575.4 | CR2: ='2. Expenditure Breakdown'!$L$16 -> Administrative Entity | CS2: ='2. Expenditure Breakdown'!$M$16 -> 0 | CT2: ='2. Expenditure Breakdown'!$N$16 -> 0 | CU2: ='2. Expenditure Breakdown'!$P$16 -> Yes | CV2: ='2. Expenditure Breakdown'!R16 -> 18575.4 | CW2: ='2. Expenditure Breakdown'!S16 -> 0.422513875 | CX2: ='2. Expenditure Breakdown'!T16 -> 8794 | CY2: ='3. Reporting Requirements '!$H$16 -> 5 | CZ2: ='3. Reporting Requirements '!$F$78 -> 1196.22 | DA2: ='3. Reporting Requirements '!$N$78 -> 1 | DB2: ='3. Reporting Requirements '!$A$84 -> In the last 12 months The Landlord Engagement and Mitigation Fund has maintained a pool of 44 landlords. Through these efforts the program has been able to successfully house at least 30 high barrier households. The Landlord Locator enrolled an individual with multiple housing barriers into the Certified Ready to Rent Tenancy Education Program to help her achieve her goal of permanent housing. The individual gained the skills necessary to be successful in her housing, and the Landlord Locator advocated on the individual’s behalf with a landlord. The individual was approved for a unit and now engages with her Housing Specialist regularly, follows her budget, and utilizes the skills of her tenancy education to maintain her success. Her credit is improving, and her baby was born into a stable home. She even started a patio garden that is thriving just like her household, and her daughter is excited about having her own room. | DC2: ='4. HMIS Data'!$C$14 -> 141 | DD2: ='4. HMIS Data'!$E$14 -> 23 | DE2: ='4. HMIS Data'!$G$14 -> 0 | DF2: ='4. HMIS Data'!$I$14 -> 314 | DG2: ='4. HMIS Data'!$K$14 -> 1 | DH2: ='4. HMIS Data'!$M$14 -> 1 | DI2: ='4. HMIS Data'!$O$14 -> 0 | DJ2: ='4. HMIS Data'!$P$14 -> 0 | DK2: ='4. HMIS Data'!$Q$14 -> 0 | DL2: ='4. HMIS Data'!$R$14 -> 0 | DM2: ='4. HMIS Data'!$S$14 -> 0 | DN2: ='4. HMIS Data'!$U$14 -> 0 | DO2: ='4. HMIS Data'!$V$14 -> 141 | DP2: ='4. HMIS Data'!$W$14 -> Yes | DQ2: ='4. HMIS Data'!$C$15 -> 0 | DR2: ='4. HMIS Data'!$E$15 -> 0 | DS2: ='4. HMIS Data'!$G$15 -> 0 | DT2: ='4. HMIS Data'!$I$15 -> 0 | DU2: ='4. HMIS Data'!$K$15 -> 0 | DV2: ='4. HMIS Data'!$M$15 -> 0 | DW2: ='4. HMIS Data'!$O$15 -> 0 | DX2: ='4. HMIS Data'!$P$15 -> 0 | DY2: ='4. HMIS Data'!$Q$15 -> 0 | DZ2: ='4. HMIS Data'!$R$15 -> 0 | EA2: ='4. HMIS Data'!$S$15 -> 0 | EB2: ='4. HMIS Data'!$U$15 -> 0 | EC2: ='4. HMIS Data'!$V$15 -> 0 | ED2: ='4. HMIS Data'!$W$15 -> Select One | EE2: ='4. HMIS Data'!$C$16 -> 0 | EF2: ='4. HMIS Data'!$E$16 -> 0 | EG2: ='4. HMIS Data'!$G$16 -> 0 | EH2: ='4. HMIS Data'!$I$16 -> 0 | EI2: ='4. HMIS Data'!$K$16 -> 0 | EJ2: ='4. HMIS Data'!$M$16 -> 0 | EK2: ='4. HMIS Data'!$O$16 -> 0 | EL2: ='4. HMIS Data'!$P$16 -> 0 | EM2: ='4. HMIS Data'!$Q$16 -> 0 | EN2: ='4. HMIS Data'!$R$16 -> 0 | EO2: ='4. HMIS Data'!$S$16 -> 0 | EP2: ='4. HMIS Data'!$U$16 -> 0 | EQ2: ='4. HMIS Data'!$V$16 -> 0 | ER2: ='4. HMIS Data'!$W$16 -> Select One | ES2: ='4. HMIS Data'!$C$17 -> 0 | ET2: ='4. HMIS Data'!$E$17 -> 0 | EU2: ='4. HMIS Data'!$G$17 -> 0 | EV2: ='4. HMIS Data'!$I$17 -> 0 | EW2: ='4. HMIS Data'!$K$17 -> 0 | EX2: ='4. HMIS Data'!$M$17 -> 0 | EY2: ='4. HMIS Data'!$O$17 -> 0 | EZ2: ='4. HMIS Data'!$P$17 -> 0 | FA2: ='4. HMIS Data'!$Q$17 -> 0 | FB2: ='4. HMIS Data'!$R$17 -> 0 | FC2: ='4. HMIS Data'!$S$17 -> 0 | FD2: ='4. HMIS Data'!$U$17 -> 0 | FE2: ='4. HMIS Data'!$V$17 -> 0 | FF2: ='4. HMIS Data'!$W$17 -> Select One | FG2: ='4. HMIS Data'!$C$18 -> 0 | FH2: ='4. HMIS Data'!$E$18 -> 0 | FI2: ='4. HMIS Data'!$G$18 -> 0 | FJ2: ='4. HMIS Data'!$I$18 -> 0 | FK2: ='4. HMIS Data'!$K$18 -> 0 | FL2: ='4. HMIS Data'!$M$18 -> 0 | FM2: ='4. HMIS Data'!$O$18 -> 0 | FN2: ='4. HMIS Data'!$P$18 -> 0 | FO2: ='4. HMIS Data'!$Q$18 -> 0 | FP2: ='4. HMIS Data'!$R$18 -> 0 | FQ2: ='4. HMIS Data'!$S$18 -> 0 | FR2: ='4. HMIS Data'!$U$18 -> 0 | FS2: ='4. HMIS Data'!$V$18 -> 0 | FT2: ='4. HMIS Data'!$W$18 -> Select One | FU2: ='4. HMIS Data'!$C$19 -> 0 | FV2: ='4. HMIS Data'!$E$19 -> 0 | FW2: ='4. HMIS Data'!$G$19 -> 0 | FX2: ='4. HMIS Data'!$I$19 -> 0 | FY2: ='4. HMIS Data'!$K$19 -> 0 | FZ2: ='4. HMIS Data'!$M$19 -> 0 | GA2: ='4. HMIS Data'!$O$19 -> 0 | GB2: ='4. HMIS Data'!$P$19 -> 0 | GC2: ='4. HMIS Data'!$Q$19 -> 0 | GD2: ='4. HMIS Data'!$R$19 -> 0 | GE2: ='4. HMIS Data'!$S$19 -> 0 | GF2: ='4. HMIS Data'!$U$19 -> 0 | GG2: ='4. HMIS Data'!$V$19 -> 0 | GH2: ='4. HMIS Data'!$W$19 -> Select One | GI2: ='4. HMIS Data'!$C$20 -> 0 | GJ2: ='4. HMIS Data'!$E$20 -> 0 | GK2: ='4. HMIS Data'!$G$20 -> 0 | GL2: ='4. HMIS Data'!$I$20 -> 0 | GM2: ='4. HMIS Data'!$K$20 -> 0 | GN2: ='4. HMIS Data'!$M$20 -> 0 | GO2: ='4. HMIS Data'!$O$20 -> 0 | GP2: ='4. HMIS Data'!$P$20 -> 0 | GQ2: ='4. HMIS Data'!$Q$20 -> 0 | GR2: ='4. HMIS Data'!$R$20 -> 0 | GS2: ='4. HMIS Data'!$S$20 -> 0 | GT2: ='4. HMIS Data'!$U$20 -> 0 | GU2: ='4. HMIS Data'!$V$20 -> 0 | GV2: ='4. HMIS Data'!$W$20 -> Select One | GW2: ='4. HMIS Data'!$U$25 -> 18 | GX2: ='4. HMIS Data'!$U$26 -> 15 | GY2: ='4. HMIS Data'!$U$27 -> 21
